lending/lending_fUSD_20250224
["ID","MTS","AMOUNT","RATE_DAILY","PERIOD"]
[354324503,1740409849249,-150.0,0.00039198,2]
[354324504,1740409849259,-790.6798028,0.00039199,4]
[354324505,1740409849270,-1007.51319795,0.000392,5]
[354324506,1740409849279,-1007.80734853,0.000392,5]
[354324507,1740409849289,-1159.9091891,0.000392,5]
[354324508,1740409849298,-150.0,0.0003922,2]
[354324509,1740409849309,-150.0,0.00039222,2]
[354324510,1740409849319,-4059.33,0.00039248,5]
[354324511,1740409849329,-150.0,0.00039261,2]
[354324512,1740409849339,-150.0,0.00039264,2]
[354324513,1740409849348,-150.0,0.00039267,2]
[354324514,1740409849358,-150.0,0.00039285,2]
[354324515,1740409849368,-150.0,0.00039297,2]
[354324516,1740409849377,-150.0,0.00039304,2]
[354324517,1740409849387,-150.0,0.00039315,2]
[354324518,1740409849396,-150.0,0.00039325,2]
[354324519,1740409849406,-150.0,0.00039347,2]
[354324520,1740409849416,-150.0,0.00039355,2]
[354324521,1740409849425,-150.0,0.00039364,2]
[354324522,1740409849435,-150.0,0.00039379,2]
[354324523,1740409849444,-150.0,0.00039393,2]
[354324524,1740409849456,-150.0,0.00039396,2]
[354324525,1740409849469,-150.0,0.00039414,2]
[354324526,1740409849482,-150.0,0.00039428,2]
[354324527,1740409849492,-150.0,0.0003943,2]
[354324528,1740409849502,-150.0,0.00039435,2]
[354324529,1740409849512,-500.0,0.00039452,60]
[354324530,1740409849522,-1400.0,0.00039452,60]
[354324531,1740409849533,-500.0,0.00039452,2]
[354324532,1740409849543,-500.0,0.00039452,2]
[354324533,1740409849553,-500.0,0.00039452,2]
[354324534,1740409849563,-500.0,0.00039452,2]
[354324535,1740409849573,-500.0,0.00039452,2]
[354324536,1740409849582,-500.0,0.00039452,2]
[354324537,1740409849592,-152.0,0.0003947,8]
[354324538,1740409849602,-150.0,0.0003948,2]
[354324539,1740409849611,-150.0,0.00039482,2]
[354324540,1740409849621,-2110.0,0.000395,2]
[354324541,1740409849630,-96146.21229398,0.000395,120]
[354324542,1740409849640,-150.0,0.00039509,2]
[354324543,1740409849649,-150.0,0.00039516,2]
[354324544,1740409849658,-150.0,0.00039542,2]
[354324545,1740409849668,-150.0,0.00039551,2]
[354324546,1740409849677,-150.0,0.00039558,2]
[354324547,1740409849686,-150.0,0.00039585,2]
[354324548,1740409849696,-150.0,0.00039593,2]
[354324549,1740409849705,-150.0,0.00039597,2]
[354324550,1740409849714,-150.0,0.00039599,2]
[354324551,1740409849724,-150.0,0.00039666,2]
[354324552,1740409849733,-150.0,0.00039671,2]
[354324553,1740409849742,-500.3110122,0.00039689,120]
[354324554,1740409849752,-373.0,0.00039699,14]
[354324555,1740409849923,-150.0,0.00039711,2]
[354324556,1740409849932,-150.0,0.00039716,2]
[354324557,1740409849942,-167.1,0.00039726,120]
[354324558,1740409849951,-150.0,0.00039762,2]
[354324559,1740409849960,-150.0,0.0003977,2]
[354324560,1740409849970,-150.0,0.00039774,2]
[354324561,1740409849982,-150.0,0.00039776,2]
[354324562,1740409849992,-150.0,0.00039779,2]
[354324563,1740409850001,-150.0,0.00039781,7]
[354324564,1740409850011,-200.00000001,0.00039781,7]
[354324565,1740409850020,-653.28310199,0.000398,120]
[354324566,1740409850187,-278.19,0.000289,2]
[354324567,1740409850196,-278.19,0.000289,2]
[354324568,1740409850206,-128.06468257,0.000289,2]
[354324569,1740409850218,-648.33531743,0.000289,2]
[354324570,1740409850229,-1848.26468247,0.00035231,2]
[354324571,1740409850241,-233.76189552,0.00035231,2]
[354324572,1740409850250,-211.0,0.00036,2]
[354324573,1740409850259,-506.54083339,0.000398,120]
[354324574,1740409850271,-1516.2228428,0.000398,120]
[354324575,1740409850282,-129596.3296517,0.000398,120]
[354324576,1740409850292,-28030.26897229,0.000398,120]
[354324577,1740409850306,-2366.55095285,0.000398,120]
[354324578,1740409850317,-665.74115202,0.000398,120]
[354324579,1740409850329,-601.45985174,0.000398,120]
[354324580,1740409850339,-3.69014839,0.000398,3]
[354324581,1740409850350,-342.47192672,0.000398,3]
[354324582,1740409850362,-1653.83792489,0.000398,3]
[354324583,1740409850372,-2451.58910526,0.000398,2]
[354324584,1740409850382,-176.69496627,0.000398,2]
[354324585,1740409850391,-150.0,0.00039815,2]
[354324586,1740409850402,-150.0,0.00039819,2]
[354324587,1740409850411,-150.0,0.00039839,2]
[354324588,1740409850421,-142.79995561,0.00039851,2]
[354324589,1740409850432,-7.20004439,0.00039851,2]
[354324590,1740409850441,-150.0,0.00039857,2]
[354324591,1740409850453,-150.0,0.00039873,2]
[354324592,1740409850464,-150.0,0.00039876,2]
[354324593,1740409850475,-532.08,0.00039889,4]
[354324594,1740409850485,-500.0,0.00039889,4]
[354324595,1740409850494,-500.0,0.00039889,4]
[354324596,1740409850505,-500.0,0.00039889,4]
[354324597,1740409850514,-500.0,0.00039889,4]
[354324598,1740409850525,-500.0,0.00039889,4]
[354324599,1740409850537,-500.0,0.00039889,4]
[354324600,1740409850546,-500.0,0.00039889,4]
[354324601,1740409850556,-150.0,0.00039898,2]
[354324602,1740409850565,-150.0,0.00039899,2]
[354324603,1740409850575,-4663.71995561,0.000399,30]
[354324604,1740409850587,-285.56665977,0.000399,30]
[354324605,1740409925266,200.0,0.00022,30]
[354324606,1740410229091,220.0,0.00022,30]
[354324609,1740410566222,195.14,8.767e-05,2]
[354324610,1740410621541,2000.0,0.00022,30]
[354324611,1740410708574,804.86,0.0001,2]
[354324612,1740410715060,693.05658715,0.000121,30]
[354324614,1740410832212,400.0,0.00022,30]
[354324615,1740410871052,153.78771587,0.0002,30]
[354324617,1740410898804,59596.9211779,0.00012,30]
[354324618,1740410908044,-300.0,9.7e-05,3]
[354324619,1740410908071,-700.0,9.8e-05,3]
[354324620,1740410908097,-1100.0,9.9e-05,3]
[354324621,1740410908121,-2465.4943592,9.999e-05,2]
[354324622,1740410908146,-150.0,9.999e-05,2]
[354324623,1740410908171,-156.88138735,9.999e-05,2]
[354324624,1740410908197,-500.0,9.999e-05,2]
[354324625,1740410908225,-4627.62425345,0.0001,2]
[354324626,1740410909423,-10000.0,0.0001,2]
[354324627,1740410910574,-10000.0,0.0001,2]
[354324628,1740410911549,-10000.0,0.0001,2]
[354324629,1740410912421,-10000.0,0.0001,2]
[354324630,1740410913341,-1154.78694685,9.999e-05,2]
[354324631,1740410913367,-8845.21305315,0.0001,2]
[354324632,1740410914367,-10000.0,0.0001,2]
[354324633,1740410915422,-10000.0,0.0001,2]
[354324634,1740410916278,-10000.0,0.0001,2]
[354324635,1740410917148,-10000.0,0.0001,2]
[354324636,1740410917987,-10000.0,0.0001,2]
[354324637,1740410918740,-10000.0,0.0001,2]
[354324639,1740410919843,-10000.0,0.0001,2]
[354324640,1740410920694,-10000.0,0.0001,2]
[354324641,1740410921566,-10000.0,0.0001,2]
[354324642,1740410922439,-10000.0,0.0001,2]
[354324643,1740410923372,-10000.0,0.0001,2]
[354324644,1740410924351,-10000.0,0.0001,2]
[354324645,1740410925580,-10000.0,0.0001,2]
[354324646,1740410926601,-10000.0,0.0001,2]
[354324647,1740410927501,-10000.0,0.0001,2]
[354324648,1740410928511,-10000.0,0.0001,2]
[354324649,1740410929354,-10000.0,0.0001,2]
[354324650,1740410930229,-10000.0,0.0001,2]
[354324651,1740410931134,-10000.0,0.0001,2]
[354324652,1740410932218,-10000.0,0.0001,2]
[354324653,1740410932953,-10000.0,0.0001,2]
[354324654,1740410933834,-10000.0,0.0001,2]
[354324659,1740410934755,-10000.0,0.0001,2]
[354324660,1740410935935,-10000.0,0.0001,2]
[354324661,1740410936617,-10000.0,0.0001,2]
[354324662,1740410937516,-10000.0,0.0001,2]
[354324663,1740410938350,-10000.0,0.0001,2]
[354324665,1740410939119,-10000.0,0.0001,2]
[354324666,1740410940097,-10000.0,0.0001,2]
[354324667,1740410940929,-10000.0,0.0001,2]
[354324673,1740410974021,-500.0,9.973e-05,2]
[354324674,1740410974045,-300.0,9.999e-05,2]
[354324675,1740410974079,-9200.0,0.0001,2]
[354324676,1740410975041,-10000.0,0.0001,2]
[354324678,1740410975967,-10000.0,0.0001,2]
[354324679,1740410976937,-10000.0,0.0001,2]
[354324680,1740410977845,-10000.0,0.0001,2]
[354324681,1740411008246,-300.0,9.999e-05,2]
[354324682,1740411008268,-150.0,9.999e-05,2]
[354324683,1740411008293,-2182.0,0.0001,2]
[354324695,1740411032366,-277.9276,0.0001,2]
[354324696,1740411032397,-4813.14565413,0.0001,2]
[354324697,1740411032411,-2067.35564003,0.0001,2]
[354324698,1740411032422,-250.0,0.0001,2]
[354324699,1740411032433,-1039.20795441,0.0001,2]
[354324700,1740411032471,-945.99,0.0001,2]
[354324701,1740411032482,-440.12893311,0.0001,2]
[354324702,1740411032501,-1531.77259899,0.0001,2]
[354324703,1740411032512,-17185.6142229,0.0001,2]
[354324710,1740411032705,-1334.36339994,0.0001,2]
[354324839,1740411038175,-494.2600002,0.0001,2]
[354324840,1740411038188,-2390979.0817045,0.0001,2]
[354324841,1740411038197,-1500.0,0.0001,3]
[354324842,1740411038207,-1138268.36446911,0.0001,2]
[354324843,1740411038218,-6134.51804498,0.0001,2]
[354324844,1740411038229,-12547.30553233,0.0001,2]
[354324845,1740411038323,-768.39999855,0.0001,2]
[354324846,1740411038392,-1900.07594,0.0001,2]
[354324849,1740411038403,-1334.34999999,0.0001,2]
[354324863,1740411041075,-299.34300967,0.0001,2]
[354324864,1740411041086,-333537.28022961,0.0001,2]
[354324865,1740411041096,-171.87788393,0.0001,2]
[354324866,1740411041105,-546.79606097,0.0001,2]
[354324867,1740411041114,-4161.1559065,0.0001,2]
[354324868,1740411041124,-180.77078562,0.0001,2]
[354324869,1740411041149,-574.48039059,0.0001,2]
[354324870,1740411041158,-500.0,0.00010521,2]
[354324871,1740411041166,-369.02544935,0.00010999,5]
[354324872,1740411041175,-850194.67672684,0.00010999,5]
[354324873,1740411041449,-234438.61346762,0.00010999,5]
[354324890,1740411043291,-286.84190299,0.00010999,5]
[354324891,1740411043302,-2441.99999,0.00010999,5]
[354324945,1740411046169,-1682450.36479499,0.00010999,5]
[354324948,1740411046181,-84064.75098311,0.00010999,5]
[354324950,1740411046191,-420.0,0.00010999,2]
[354324952,1740411046200,-255.0,0.00010999,2]
[354324954,1740411046210,-3694.88898728,0.00011,2]
[354324956,1740411046219,-500.0,0.00011,2]
[354324958,1740411046229,-796.27978178,0.00011099,2]
[354324960,1740411046239,-796.27978175,0.00011099,2]
[354324962,1740411046249,-796.27978175,0.00011099,2]
[354324964,1740411046259,-796.27978175,0.00011099,2]
[354324967,1740411046269,-207.27059675,0.000116,2]
[354324968,1740411046279,-300.0,0.00012099,2]
[354324970,1740411046289,-405.0,0.00012099,2]
[354324972,1740411046299,-307.66860442,0.000123,2]
[354324975,1740411046308,-9218.33719395,0.000148,3]
[354324977,1740411046318,-43639.3800226,0.000149,2]
[354324979,1740411046327,-2566.15144092,0.000149,3]
[354324980,1740411046337,-1962.66157486,0.00015,2]
[354324983,1740411046346,-255.90880645,0.00015,2]
[354324985,1740411046355,-2063.50179026,0.00015,2]
[354324986,1740411046365,-6572.08885019,0.00015,15]
[354324987,1740411046380,-499.999999,0.000151,2]
[354324988,1740411046390,-195.14,0.00015516,2]
[354324989,1740411046400,-2725.25,0.00015523,2]
[354324991,1740411046410,-318.24273033,0.00016,10]
[354324993,1740411046419,-500.98040472,0.00016473,2]
[354324995,1740411046428,-93374.44952539,0.000165,3]
[354324997,1740411046438,-248.71,0.000166,2]
[354324999,1740411046448,-448.32482545,0.00016601,2]
[354325001,1740411046458,-153.17217,0.00016688,7]
[354325003,1740411046468,-153.17217,0.00016888,7]
[354325005,1740411046478,-153.17217,0.00017088,7]
[354325006,1740411046487,-1004.59604336,0.00017175,2]
[354325008,1740411046497,-153.17217,0.00017288,7]
[354325010,1740411046506,-153.17217,0.00017488,7]
[354325012,1740411046516,-1500.000001,0.000175,2]
[354325014,1740411046525,-153.17217,0.00017688,7]
[354325016,1740411046536,-743.37793005,0.00017688,3]
[354325018,1740411046545,-193.27997254,0.00017873,2]
[354325020,1740411046555,-153.17217,0.00017888,7]
[354325022,1740411046564,-55685.32060535,0.000179,2]
[354325025,1740411046584,-1895.0,0.000179,2]
[354325039,1740411352420,-626.49,9.999e-05,2]
[354325040,1740411425760,200.0,0.00022,30]
[354325041,1740411588914,855.89,0.00019397,30]
[354325042,1740411589163,855.89,0.00021981,30]
[354325043,1740411942935,3134.1039608,0.0002,30]
[354325045,1740412015082,221.71,8.767e-05,2]
[354325047,1740412135354,-150.0,0.00010999,2]
[354325048,1740412135376,-150.0,0.00012099,2]
[354325049,1740412135398,-1000.0,0.00012616,2]
[354325050,1740412135421,-230.33,0.00012751,2]
[354325051,1740412135442,-150.0,0.00012751,2]
[354325052,1740412135463,-1128.63,0.00012782,2]
[354325053,1740412135485,-23900.0,0.00012861,2]
[354325054,1740412135507,-150.0,0.00012877,2]
[354325055,1740412135528,-3711.45,0.00012915,2]
[354325056,1740412135549,-550.0,0.00013,2]
[354325057,1740412135570,-4291.81,0.00013138,2]
[354325058,1740412135591,-2000.0,0.00013138,2]
[354325059,1740412135612,-1380.02,0.00013183,2]
[354325060,1740412135634,-445.97,0.00013235,2]
[354325061,1740412135655,-576.19,0.00013266,2]
[354325062,1740412135675,-419.75879209,0.00013598,2]
[354325063,1740412135696,-618.25013031,0.00013599,2]
[354325064,1740412135720,-10930.54,0.00013699,2]
[354325065,1740412135741,-200.0,0.00013699,2]
[354325066,1740412135763,-872.84,0.00013771,2]
[354325067,1740412135786,-1000.0,0.00014193,2]
[354325068,1740412135808,-230.33,0.00014345,2]
[354325069,1740412135829,-250.0,0.00014653,2]
[354325070,1740412135851,-1453.11,0.00014685,2]
[354325071,1740412135873,-2760.19,0.0001486,2]
[354325072,1740412135909,-200.62995267,0.000149,2]
[354325073,1740412135931,-600.0,0.00015,2]
[354325074,1740412135952,-1971.0,0.000151,3]
[354325075,1740412135973,-221.71,0.00015516,2]
[354325076,1740412135994,-1000.0,0.0001577,2]
[354325077,1740412136019,-230.33,0.00015938,2]
[354325078,1740412136041,-150.02,0.00016438,2]
[354325079,1740412136063,-319.16,0.000167,2]
[354325080,1740412136084,-796.27,0.00016713,2]
[354325081,1740412136105,-4585.318,0.00016965,2]
[354325082,1740412136127,-174.859,0.00016965,2]
[354325083,1740412136153,-650.0,0.00017,2]
[354325084,1740412136176,-1000.0,0.00017347,2]
[354325085,1740412136201,-230.33,0.00017532,2]
[354325086,1740412136226,-420.9316025,0.00017582,2]
[354325087,1740412136248,-5756.2773,0.000177,2]
[354325088,1740412136272,-687.2701,0.000177,2]
[354325089,1740412136294,-1184.193,0.000177,2]
[354325090,1740412136317,-1223.0343,0.000177,2]
[354325091,1740412136338,-319.82658487,0.00017799,2]
[354325092,1740412136359,-3744.1786,0.000178,2]
[354325093,1740412136382,-4500.8025,0.000178,2]
[354325094,1740412136404,-1288.8953,0.000178,2]
[354325095,1740412136425,-1000.0,0.000178,2]
[354325096,1740412136447,-2500.0,0.000178,2]
[354325097,1740412136468,-504.3915427,0.00017873,2]
[354325098,1740412136688,-86191.15329486,0.000179,2]
[354325143,1740412232674,-287.24,0.000167,2]
[354325144,1740412232684,-603.02407934,0.000167,2]
[354325145,1740412232696,-585.17802667,0.000167,2]
[354325146,1740412232708,-283.7,0.000167,2]
[354325147,1740412233202,-8454.0,0.000167,2]
[354325148,1740412233215,-271.5,0.000167,2]
[354325149,1740412233249,-109766.57388101,0.000167,2]
[354325150,1740412233262,-397.66745194,0.000167,2]
[354325151,1740412233274,-1970.45815022,0.000167,2]
[354325152,1740412233289,-47035.0,0.000167,2]
[354325153,1740412233303,-1000.0,0.000167,2]
[354325154,1740412233315,-32921.00000001,0.000167,2]
[354325155,1740412233327,-1190.87951664,0.000167,2]
[354325156,1740412233346,-13023.21696417,0.000167,2]
[354325157,1740412233357,-1602.313,0.000177,2]
[354325158,1740412233367,-2315.031,0.000177,2]
[354325159,1740412233378,-827.7708,0.0001772,2]
[354325160,1740412233388,-559.536,0.000178,2]
[354325161,1740412233398,-18304.63697776,0.000179,2]
[354325162,1740412233408,-38556.81854936,0.000179,2]
[354325186,1740412238306,-407.74329859,0.000176,2]
[354325191,1740412238319,-233.29873302,0.000176,2]
[354325194,1740412238329,-111.90174238,0.000179,2]
[354325198,1740412238368,-4863.28192416,0.000179,2]
[354325201,1740412238380,-37173.07827432,0.000179,2]
[354325203,1740412238390,-1000.0,0.000179,2]
[354325205,1740412238400,-6543.6877,0.00018,2]
[354325207,1740412238409,-1237.0501,0.00018,2]
[354325209,1740412238419,-787.61,0.00018061,2]
[354325211,1740412238428,-200.0,0.00018082,2]
[354325213,1740412238438,-1703.06201578,0.000181,2]
[354325215,1740412238447,-150.21,0.000183,2]
[354325216,1740412238457,-3289.50187177,0.00018552,2]
[354325218,1740412238467,-1301.68432092,0.00018632,3]
[354325220,1740412238476,-2106.82525137,0.000187,5]
[354325222,1740412238486,-200.0,0.000188,2]
[354325224,1740412238496,-1293.06575442,0.000189,2]
[354325226,1740412238505,-163.83,0.00018919,2]
[354325228,1740412238515,-939.22,0.00018923,2]
[354325230,1740412238524,-1000.0,0.00018924,2]
[354325232,1740412238534,-796.27,0.00018977,2]
[354325234,1740412238543,-349.9,0.00018984,2]
[354325236,1740412238552,-473.75287161,0.00019,2]
[354325238,1740412238562,-349.9,0.00019124,2]
[354325240,1740412238572,-230.33,0.00019126,2]
[354325242,1740412238581,-776.29095293,0.00019178,7]
[354325245,1740412238598,-349.9,0.00019264,2]
[354325247,1740412238608,-1048.36270082,0.000193,2]
[354325249,1740412238617,-299.99,0.00019339,7]
[354325251,1740412238627,-275.49,0.00019339,2]
[354325253,1740412238637,-957.09,0.00019339,2]
[354325255,1740412238647,-150.99,0.00019339,2]
[354325257,1740412238656,-349.9,0.00019404,2]
[354325259,1740412238666,-349.9,0.00019544,2]
[354325261,1740412238675,-4486.57059397,0.00019584,2]
[354325263,1740412238685,-500.0,0.0001968,2]
[354325265,1740412238696,-244.133704,0.0001968,2]
[354325267,1740412238705,-500.0,0.0001968,2]
[354325269,1740412238714,-4445.27135534,0.00019681,2]
[354325271,1740412238726,-271.000002,0.00019681,2]
[354325273,1740412238738,-382.0,0.00019681,2]
[354325276,1740412238752,-28748.22114266,0.00019681,2]
[354325278,1740412238761,-349.9,0.00019684,2]
[354325280,1740412238771,-1000.0,0.00019781,2]
[354325282,1740412238780,-349.9,0.00019824,2]
[354325284,1740412238789,-500.0,0.000199,2]
[354325286,1740412238799,-319.30431994,0.000199,2]
[354325288,1740412238809,-500.0,0.00019945,2]
[354325290,1740412238818,-349.9,0.00019963,2]
[354325292,1740412238827,-511.65,0.0002,6]
[354325294,1740412238841,-908.3374685,0.0002,4]
[354325296,1740412238850,-7430.27072425,0.0002,2]
[354325303,1740412238912,-2514.67351083,0.0002,2]
[354325305,1740412238921,-1117.89854444,0.0002,4]
[354325307,1740412238931,-2600.83661281,0.0002,10]
[354325312,1740412238971,-4422.36611435,0.0002,10]
[354325314,1740412238982,-518.16753029,0.0002,10]
[354325316,1740412238993,-1424.195,0.0002,10]
[354325318,1740412239005,-956.29183621,0.0002,10]
[354325321,1740412239017,-6910.2,0.0002,10]
[354325323,1740412239028,-557.82224678,0.0002,10]
[354325325,1740412239040,-2067.21978566,0.0002,10]
[354325327,1740412239051,-1435.556984,0.0002,10]
[354325329,1740412239062,-215.43863982,0.0002,10]
[354325331,1740412239072,-2589.35669665,0.0002,5]
[354325333,1740412239082,-3562.24470351,0.0002,15]
[354325336,1740412239099,-1184.57057306,0.0002,15]
[354325338,1740412239111,-13969.89661345,0.0002,15]
[354325340,1740412239122,-1013.0,0.0002,6]
[354325342,1740412239133,-798.99530885,0.0002,7]
[354325344,1740412239143,-1001.34609455,0.0002,2]
[354325346,1740412239153,-2151.6354373,0.0002,2]
[354325348,1740412239163,-1717.51988763,0.0002,2]
[354325350,1740412239173,-349.9,0.00020103,2]
[354325352,1740412239183,-827.77081,0.0002022,2]
[354325354,1740412239192,-349.9,0.00020243,2]
[354325356,1740412239202,-5590.79394607,0.0002027,2]
[354325358,1740412239212,-150.37,0.00020276,2]
[354325360,1740412239222,-3004.46246209,0.0002029,2]
[354325362,1740412239232,-349.9,0.00020383,2]
[354325364,1740412239243,-349.9,0.00020523,2]
[354325366,1740412239256,-181.98,0.000206,2]
[354325368,1740412239266,-1137.5364,0.00020656,2]
[354325370,1740412239275,-3151.84817059,0.00020657,30]
[354325372,1740412239285,-555.48442459,0.00020657,5]
[354325374,1740412239296,-15372.22056741,0.00020657,2]
[354325376,1740412239307,-1473.1779149,0.00020657,10]
[354325378,1740412239316,-2748.27200884,0.00020657,30]
[354325380,1740412239326,-2354.26290779,0.00020657,30]
[354325381,1740412239338,-4500.0,0.00020657,30]
[354325383,1740412239348,-611.81177268,0.00020657,6]
[354325385,1740412239358,-1012.39700539,0.00020657,15]
[354325387,1740412239367,-946.45259663,0.00020657,20]
[354325389,1740412239377,-2500.0,0.00020657,30]
[354325391,1740412239387,-524.09368761,0.00020657,7]
[354325394,1740412239398,-300.0,0.00020657,15]
[354325396,1740412239408,-939.62613935,0.00020657,2]
[354325398,1740412239418,-3000.0,0.00020657,30]
[354325399,1740412239428,-965.36855938,0.00020657,5]
[354325402,1740412239439,-2243.79768115,0.00020657,14]
[354325403,1740412239450,-162.76197214,0.00020657,2]
[354325405,1740412239459,-862.64943616,0.00020657,5]
[354325407,1740412239470,-1224.06739282,0.00020657,15]
[354325409,1740412239479,-2211.82663749,0.00020657,10]
[354325411,1740412239489,-585.13694304,0.00020657,5]
[354325413,1740412239498,-2242.006121,0.00020657,10]
[354325415,1740412239508,-1000.0,0.00020657,10]
[354325418,1740412239518,-500.0,0.00020657,10]
[354325420,1740412239528,-795.27661593,0.00020657,2]
[354325421,1740412239538,-1267.87414251,0.00020657,4]
[354325423,1740412239548,-458.43603648,0.00020657,7]
[354325425,1740412239558,-3053.74139222,0.00020657,30]
[354325428,1740412239568,-9091.49700592,0.00020657,2]
[354325429,1740412239577,-270.81001959,0.00020657,10]
[354325432,1740412239590,-275.0,0.00020657,14]
[354325433,1740412239599,-500.0,0.00020657,7]
[354325435,1740412239610,-1653.64160576,0.00020657,7]
[354325438,1740412239619,-349.9,0.00020663,2]
[354325439,1740412239628,-500.0,0.00020673,2]
[354325442,1740412239638,-349.9,0.00020803,2]
[354325444,1740412239647,-349.9,0.00020943,2]
[354325446,1740412239656,-1243.47376745,0.00021,2]
[354325447,1740412239665,-349.9,0.00021083,2]
[354325450,1740412239675,-349.9,0.00021222,2]
[354325452,1740412239684,-796.27,0.00021241,2]
[354325453,1740412239693,-349.9,0.00021362,2]
[354325456,1740412239703,-10552.32076355,0.000214,2]
[354325457,1740412239712,-349.9,0.00021502,2]
[354325460,1740412239721,-349.9,0.00021642,2]
[354325462,1740412239731,-4463.28616101,0.0002178,2]
[354325464,1740412239742,-861.74,0.000218,7]
[354325466,1740412239752,-4486.57059395,0.0002183,2]
[354325468,1740412239761,-1000.0,0.00021987,2]
[354325470,1740412239770,-2528.63525981,0.00022,7]
[354325472,1740412239780,-195.14,0.00022264,2]
[354325474,1740412239789,-221.71,0.00022264,2]
[354325476,1740412239798,-2900.0,0.000225,15]
[354325478,1740412239808,-33970.13456797,0.000225,2]
[354325480,1740412239818,-207.45,0.00022572,2]
[354325482,1740412239827,-501.19350431,0.0002271,2]
[354325484,1740412239840,-827.7708,0.0002272,2]
[354325486,1740412239849,-200.0,0.00023,2]
[354325488,1740412239859,-52000.00999202,0.00023,10]
[354325490,1740412239869,-320.0,0.00023,10]
[354325492,1740412239879,-1417.44587793,0.00023,2]
[354325494,1740412239889,-1000.0,0.00023,14]
[354325496,1740412239898,-1941.0,0.00023,120]
[354325498,1740412239908,-500.50975833,0.00023291,2]
[354325500,1740412239917,-500.37916013,0.00023291,2]
[354325502,1740412239927,-796.27,0.00023505,2]
[354325504,1740412239937,-2027.0,0.00023712,2]
[354325506,1740412239947,-150.0,0.00023712,2]
[354325508,1740412239956,-555.609,0.00023712,2]
[354325510,1740412239966,-577.733,0.00023712,2]
[354325512,1740412239976,-250.0,0.00023712,2]
[354325514,1740412239985,-1009.0,0.00023712,2]
[354325516,1740412239995,-232.0,0.00023712,2]
[354325518,1740412240005,-150.0,0.00023712,2]
[354325520,1740412240014,-491.322,0.00023712,2]
[354325522,1740412240024,-150.309,0.00023712,2]
[354325524,1740412240033,-213.669,0.00023712,2]
[354325526,1740412240042,-413.39,0.00023836,2]
[354325528,1740412240051,-460.23311852,0.00024,2]
[354325530,1740412240061,-1000.0,0.00024,9]
[354325532,1740412240070,-1000.0,0.00024,9]
[354325534,1740412240079,-1000.0,0.00024,9]
[354325536,1740412240090,-1000.0,0.00024,9]
[354325538,1740412240099,-1000.0,0.00024,9]
[354325540,1740412240108,-1000.0,0.00024,9]
[354325542,1740412240118,-1000.0,0.00024,9]
[354325544,1740412240128,-1000.0,0.00024,9]
[354325546,1740412240137,-1000.0,0.00024,9]
[354325548,1740412240150,-1000.0,0.00024,9]
[354325550,1740412240160,-4486.57059395,0.00024076,2]
[354325552,1740412240169,-198.11691905,0.00024088,2]
[354325554,1740412240178,-71628.60517757,0.00024088,2]
[354325556,1740412240188,-12130.01424868,0.0002433,2]
[354325558,1740412240198,-855.89,0.00024565,30]
[354325560,1740412240207,-1000.0,0.00024658,2]
[354325563,1740412240216,-150.0,0.00025,2]
[354325566,1740412240226,-500.0,0.00025085,2]
[354325569,1740412240236,-608.18153612,0.00025085,2]
[354325572,1740412240246,-500.0,0.00025085,2]